fUST/lending_fUST_20251211
["ID","MTS","AMOUNT","RATE_DAILY","PERIOD"]
[398135681,1765396245130,-2645.1,0.00013698,2]
[398135683,1765396245139,-5269.16,0.00013698,2]
[398135684,1765396245148,-500.0,0.00013698,2]
[398135686,1765396245157,-500.0,0.00013698,2]
[398135687,1765396245167,-500.0,0.00013698,2]
[398135688,1765396245176,-500.0,0.00013698,2]
[398135689,1765396245185,-46142.01,0.00013698,2]
[398135690,1765396245195,-500.0,0.00013698,2]
[398135691,1765396245204,-500.0,0.00013698,2]
[398135692,1765396245213,-500.0,0.00013698,2]
[398135693,1765396245222,-5685.84,0.00013698,2]
[398135694,1765396245233,-500.0,0.00013698,2]
[398135695,1765396245243,-571.17,0.00013698,2]
[398135696,1765396245252,-829.22,0.00013698,2]
[398135697,1765396245261,-500.0,0.00013698,2]
[398135698,1765396245271,-510.53627966,0.00013698,2]
[398135699,1765396245280,-500.0,0.00013698,2]
[398135700,1765396245289,-500.0,0.00013698,2]
[398135701,1765396245302,-911.96,0.00013698,2]
[398135702,1765396245311,-500.0,0.00013698,2]
[398135703,1765396245323,-500.0,0.00013698,2]
[398135704,1765396245332,-500.0,0.00013698,2]
[398135705,1765396245340,-500.0,0.00013698,2]
[398135706,1765396245350,-367.36630252,0.00013698,2]
[398135707,1765396245359,-1114.19,0.00013698,2]
[398135708,1765396245368,-636.454442,0.00013698,2]
[398135709,1765396245377,-636.454442,0.00013698,2]
[398135710,1765396245387,-636.454442,0.00013698,2]
[398135711,1765396245396,-816.61,0.00013698,2]
[398135712,1765396245405,-636.454442,0.00013698,2]
[398135713,1765396245414,-2344.05,0.00013698,2]
[398135714,1765396245424,-636.454442,0.00013698,2]
[398135715,1765396245433,-500.0,0.00013698,2]
[398135716,1765396245442,-636.454442,0.00013698,2]
[398135717,1765396245451,-636.454442,0.00013698,2]
[398135718,1765396245460,-500.0,0.00013698,2]
[398135719,1765396245470,-636.454442,0.00013698,2]
[398135720,1765396245479,-636.454442,0.00013698,2]
[398135721,1765396245489,-636.454442,0.00013698,2]
[398135722,1765396245498,-500.0,0.00013698,2]
[398135723,1765396245507,-636.454442,0.00013698,2]
[398135724,1765396245517,-636.454442,0.00013698,2]
[398135725,1765396245526,-500.0,0.00013698,2]
[398135726,1765396245536,-5923.3,0.00013698,2]
[398135727,1765396245550,-636.454442,0.00013698,2]
[398135728,1765396245560,-500.0,0.00013698,2]
[398135729,1765396245569,-636.454442,0.00013698,2]
[398135730,1765396245579,-290.14547715,0.00013698,2]
[398135731,1765396245588,-636.454442,0.00013698,2]
[398135732,1765396245597,-500.0,0.00013698,2]
[398135733,1765396245606,-636.454442,0.00013698,2]
[398135734,1765396245615,-636.454442,0.00013698,2]
[398135735,1765396245624,-500.0,0.00013698,2]
[398135736,1765396245633,-636.454442,0.00013698,2]
[398135737,1765396245642,-500.11545633,0.00013698,2]
[398135738,1765396245651,-636.454442,0.00013698,2]
[398135739,1765396245659,-636.454444,0.00013698,2]
[398135740,1765396245669,-212.70018159,0.00013698,2]
[398135747,1765396246291,-500.0,0.00012751,2]
[398135749,1765396246302,-500.0,0.00012751,2]
[398135751,1765396246312,-500.0,0.00012751,2]
[398135752,1765396246321,-500.0,0.00012751,2]
[398135754,1765396246330,-500.0,0.00012751,2]
[398135756,1765396246339,-867.99981841,0.00013698,2]
[398135758,1765396246348,-500.0,0.00013698,2]
[398135760,1765396246357,-500.0,0.00013698,2]
[398135761,1765396246366,-2296.15,0.00013698,2]
[398135763,1765396246375,-500.0,0.00013698,2]
[398135764,1765396246384,-676.88,0.00013698,2]
[398135765,1765396246393,-838.07,0.00013698,2]
[398135766,1765396246402,-1890.9,0.00013698,2]
[398135768,1765396246412,-2177.36,0.00013698,2]
[398135769,1765396246421,-500.0,0.00013698,2]
[398135770,1765396246430,-500.0,0.00013698,2]
[398135771,1765396246439,-97.71858759,0.00013698,2]
[398135773,1765396246824,-402.28141241,0.00013698,2]
[398135774,1765396246833,-500.0,0.00013698,2]
[398135775,1765396246842,-500.0,0.00013698,2]
[398135776,1765396246852,-500.0,0.00013698,2]
[398135777,1765396246861,-1609.37,0.00013698,2]
[398135778,1765396246871,-898.2,0.00013698,2]
[398135779,1765396246880,-500.0,0.00013698,2]
[398135780,1765396246890,-339.13037672,0.00013698,2]
[398135781,1765396246899,-500.0,0.00013698,2]
[398135782,1765396246908,-500.0,0.00013698,2]
[398135783,1765396246917,-500.0,0.00013698,2]
[398135784,1765396246927,-1054.3,0.00013698,2]
[398135785,1765396246936,-1592.95,0.00013698,2]
[398135786,1765396246945,-500.0,0.00013698,2]
[398135787,1765396246954,-500.0,0.00013698,2]
[398135788,1765396246964,-500.0,0.00013698,2]
[398135789,1765396246973,-722.49,0.00013698,2]
[398135790,1765396246982,-5518.55,0.00013698,2]
[398135791,1765396246992,-500.0,0.00013698,2]
[398135792,1765396247001,-500.0,0.00013698,2]
[398135793,1765396247011,-500.0,0.00013698,2]
[398135794,1765396247021,-2898.14,0.00013698,2]
[398135795,1765396247030,-862.12,0.00013698,2]
[398135796,1765396247041,-786.46,0.00013698,2]
[398135797,1765396247052,-229.87560122,0.00013698,2]
[398135798,1765396247061,-566.39,0.00013698,2]
[398135799,1765396247071,-700.36,0.00013698,2]
[398135800,1765396247081,-1614.96,0.00013698,2]
[398135801,1765396247090,-500.0,0.00013698,2]
[398135802,1765396247100,-500.0,0.00013698,2]
[398135803,1765396247109,-500.0,0.00013698,2]
[398135804,1765396247118,-1633.61,0.00013698,2]
[398135805,1765396247128,-500.0,0.00013698,2]
[398135806,1765396247139,-468.76791869,0.00013698,2]
[398135807,1765396247148,-2599.41,0.00013698,2]
[398135808,1765396247157,-500.0,0.00013698,2]
[398135809,1765396247167,-500.0,0.00013698,2]
[398135810,1765396247177,-510.59796806,0.00013698,2]
[398135811,1765396247188,-500.0,0.00013698,2]
[398135812,1765396247198,-307.77703838,0.00013698,2]
[398135813,1765396247208,-500.0,0.00013698,2]
[398135814,1765396247220,-500.0,0.00013698,2]
[398135815,1765396247231,-500.0,0.00013698,2]
[398135816,1765396247243,-500.0,0.00013698,2]
[398135817,1765396247253,-4091.51748452,0.00013698,2]
[398135818,1765396247266,-441.315,0.00013698,2]
[398135819,1765396247279,-6979.15751548,0.00013698,2]
[398135820,1765396247289,-500.0,0.00013698,2]
[398135821,1765396247300,-3227.7,0.00013698,2]
[398135822,1765396247312,-500.0,0.00013698,2]
[398135823,1765396247321,-500.0,0.00013698,2]
[398135824,1765396247330,-61.79007915,0.00013698,2]
[398135825,1765396316117,-231.15,6.766e-05,2]
[398135826,1765396316146,-462.3,7.088e-05,2]
[398135827,1765396316175,-693.45,7.41e-05,2]
[398135828,1765396316203,-924.6,7.733e-05,2]
[398135829,1765396316231,-1155.75,8.055e-05,2]
[398135830,1765396316261,-1386.9,8.377e-05,2]
[398135831,1765396316545,-76.37,8.699e-05,2]
[398135832,1765396321537,-1541.67,8.699e-05,2]
[398135833,1765396321567,-1849.19,9.021e-05,2]
[398135834,1765396321600,-1137.95,9.344e-05,2]
[398135835,1765396321979,-942.39,9.344e-05,2]
[398135836,1765396324583,-300.0,9.529e-05,2]
[398135837,1765396324614,-300.0,9.53e-05,2]
[398135838,1765396324643,-300.0,9.53e-05,2]
[398135839,1765396324672,-300.0,9.53e-05,2]
[398135840,1765396324700,-300.0,9.53e-05,2]
[398135841,1765396324728,-300.0,9.53e-05,2]
[398135842,1765396324758,-300.0,9.53e-05,2]
[398135843,1765396324785,-300.0,9.53e-05,2]
[398135844,1765396324813,-300.0,9.53e-05,2]
[398135845,1765396324841,-300.0,9.53e-05,2]
[398135846,1765396324872,-300.0,9.53e-05,2]
[398135847,1765396324901,-300.0,9.53e-05,2]
[398135848,1765396324929,-300.0,9.53e-05,2]
[398135849,1765396324958,-300.0,9.53e-05,2]
[398135850,1765396324985,-300.0,9.53e-05,2]
[398135851,1765396325014,-300.0,9.53e-05,2]
[398135852,1765396372742,150.0,6.758e-05,2]
[398135855,1765396451583,150.0,6.746e-05,2]
[398135860,1765396529863,150.0,6.748e-05,2]
[398135862,1765396608611,150.0,6.746e-05,2]
[398136071,1765396686459,150.0,6.746e-05,2]
[398136073,1765396762784,150.0,6.745e-05,2]
[398136074,1765396840457,150.0,6.747e-05,2]
[398136075,1765396918801,150.0,6.751e-05,2]
[398136076,1765396999178,150.0,6.751e-05,2]
[398136079,1765397078865,150.0,6.755e-05,2]
[398136080,1765397158520,150.0,6.753e-05,2]
[398136081,1765397236963,150.0,6.755e-05,2]
[398136082,1765397314169,150.0,6.75e-05,2]
[398136083,1765397390324,150.0,6.751e-05,2]
[398136119,1765397431675,-520.0,7.066e-05,2]
[398136121,1765397431686,-150.0,7.068e-05,2]
[398136123,1765397431698,-182.78,7.072e-05,2]
[398136125,1765397431708,-274.17,7.394e-05,2]
[398136127,1765397431718,-365.56,7.715e-05,2]
[398136129,1765397431728,-456.95,8.036e-05,2]
[398136131,1765397431738,-548.35,8.358e-05,2]
[398136133,1765397431747,-639.74,8.679e-05,2]
[398136135,1765397431757,-731.13,9.001e-05,2]
[398136136,1765397431767,-177.0,9.068e-05,2]
[398136138,1765397431778,-212.50862454,9.236e-05,2]
[398136140,1765397431788,-822.52,9.322e-05,2]
[398136142,1765397431797,-913.91,9.644e-05,2]
[398136144,1765397431807,-6793.8035586,9.646e-05,2]
[398136146,1765397431818,-300.0,9.838e-05,2]
[398136147,1765397431828,-300.0,9.838e-05,2]
[398136149,1765397431838,-300.0,9.838e-05,2]
[398136151,1765397431849,-300.0,9.838e-05,2]
[398136153,1765397431858,-300.0,9.838e-05,2]
[398136155,1765397431869,-300.0,9.838e-05,2]
[398136157,1765397431879,-300.0,9.838e-05,2]
[398136159,1765397431888,-300.0,9.838e-05,2]
[398136161,1765397431898,-300.0,9.838e-05,2]
[398136163,1765397431908,-300.0,9.838e-05,2]
[398136165,1765397431918,-300.0,9.838e-05,2]
[398136167,1765397431927,-300.0,9.838e-05,2]
[398136169,1765397431937,-300.0,9.838e-05,2]
[398136170,1765397431946,-300.0,9.838e-05,2]
[398136172,1765397431955,-300.0,9.838e-05,2]
[398136174,1765397431965,-600.0,0.00010034,2]
[398136176,1765397431974,-720.0,0.00011037,2]
[398136178,1765397431983,-204.0,0.00011068,2]
[398136179,1765397431992,-1639.4412448,0.00011931,2]
[398136180,1765397432001,-1444.1489527,0.00011931,2]
[398136182,1765397432010,-5837.5577081,0.00011931,2]
[398136184,1765397432019,-864.0,0.00012141,2]
[398136186,1765397432032,-226.84772605,0.00012502,2]
[398136187,1765397432042,-2579.17784983,0.00012727,2]
[398136188,1765397432051,-700.0,0.0001274,2]
[398136189,1765397432060,-505.69260275,0.0001278,2]
[398136190,1765397432070,-197.0352694,0.00012878,2]
[398136191,1765397432079,-212.50862454,0.0001289,2]
[398136192,1765397432088,-1073.45619576,0.000129,2]
[398136228,1765397437727,-411.83638628,0.00012899,2]
[398136230,1765397437737,-15238.16361382,0.000129,2]
[398136233,1765397437749,-72391.16867295,0.000129,2]
[398136237,1765397437783,-314.09902053,0.000129,2]
[398136248,1765397437890,-188785.24581267,0.000129,2]
[398136476,1765397440138,-303.7394,0.000129,2]
[398136753,1765397443084,-500.0,0.00012899,2]
[398136755,1765397443093,-500.0,0.00012899,2]
[398136756,1765397443102,-445.92243393,0.00012899,2]
[398136757,1765397443111,-12036.97375761,0.000129,2]
[398136805,1765397445784,-2600.14448202,0.00012727,2]
[398136807,1765397445796,-1943.84412644,0.000129,2]
[398136813,1765397445839,-5377.92900897,0.000129,2]
[398136819,1765397445894,-304164.07791693,0.000129,2]
[398137078,1765397606970,-150.0,6.837e-05,2]
[398137079,1765397606999,-173.85,7.163e-05,2]
[398137080,1765397607029,-260.77,7.488e-05,2]
[398137081,1765397607060,-347.69,7.814e-05,2]
[398137082,1765397607091,-434.61,8.14e-05,2]
[398137083,1765397607122,-521.54,8.465e-05,2]
[398137084,1765397607153,-608.46,8.791e-05,2]
[398137085,1765397607186,-695.38,9.116e-05,2]
[398137086,1765397607214,-782.31,9.442e-05,2]
[398137087,1765397607244,-869.23,9.767e-05,2]
[398137088,1765397613010,-217.73649404,8.986e-05,2]
[398137089,1765397613039,-312.81625935,0.00012362,2]
[398137090,1765397613068,-300.0,0.00012898,2]
[398137091,1765397613096,-300.0,0.00012899,2]
[398137092,1765397613334,-6012.77449322,0.000129,2]
[398137093,1765397616556,150.0,6.756e-05,2]
[398137095,1765397619376,-154.12,7.077e-05,2]
[398137096,1765397619413,-231.18,7.399e-05,2]
[398137097,1765397619448,-308.24,7.721e-05,2]
[398137098,1765397619481,-385.3,8.042e-05,2]
[398137099,1765397619514,-462.35,8.364e-05,2]
[398137100,1765397619548,-539.41,8.686e-05,2]
[398137101,1765397619791,-616.47,9.008e-05,2]
[398137102,1765397619801,-5222.34,0.000129,2]
[398137104,1765397622745,-693.53,9.329e-05,2]
[398137105,1765397622776,-770.59,9.651e-05,2]
[398137106,1765397622919,-7071.77,0.000129,2]
[398137107,1765397622960,-10000.01,0.000129,2]
[398137110,1765397628758,-10000.01,0.000129,2]
[398137111,1765397628951,-10000.01,0.000129,2]
[398137389,1765398631786,-150.0,6.841e-05,2]
[398137391,1765398631795,-517.0,6.841e-05,2]
[398137393,1765398631805,-150.0,6.882e-05,2]
[398137395,1765398631815,-239.25,7.07e-05,2]
[398137397,1765398631826,-358.88,7.391e-05,2]
[398137399,1765398631837,-478.51,7.712e-05,2]
[398137401,1765398631847,-598.14,8.034e-05,2]
[398137403,1765398631856,-110.27,8.355e-05,2]
[398137406,1765398631867,-607.49,8.355e-05,2]
[398137409,1765398631877,-837.39,8.676e-05,2]
[398137412,1765398631886,-177.0,8.882e-05,2]
[398137415,1765398631896,-791.89545206,8.998e-05,2]
[398137418,1765398631907,-165.12454794,8.998e-05,2]
[398137422,1765398631916,-1076.64,9.319e-05,2]
[398137425,1765398631925,-943.12813058,9.638e-05,2]
[398137429,1765398631967,-256.87186942,9.638e-05,2]
[398137431,1765398631977,-1196.27,9.64e-05,2]
[398137432,1765398631986,-204.0,0.00010882,2]
[398137433,1765398631995,-300.0,0.00011156,2]
[398137435,1765398632005,-2920.88086417,0.00011157,2]
[398137437,1765398632014,-4067.59792056,0.00011468,2]
[398137439,1765398632025,-932.40207944,0.00011468,2]
[398137441,1765398632035,-5000.0,0.00011468,2]
[398137442,1765398632044,-5000.0,0.00011468,2]
[398137444,1765398632053,-300.0,0.00011696,2]
[398137445,1765398632062,-300.0,0.00011696,2]
[398137447,1765398632074,-300.0,0.00011696,2]
[398137449,1765398632083,-300.0,0.00011696,2]
[398137451,1765398632093,-300.0,0.00011696,2]
[398137453,1765398632102,-300.0,0.00011696,2]
[398137455,1765398632111,-300.0,0.00011696,2]
[398137457,1765398632120,-300.0,0.00011696,2]
[398137459,1765398632131,-300.0,0.00011696,2]
[398137461,1765398632142,-300.0,0.00011696,2]
[398137463,1765398632151,-300.0,0.00011696,2]
[398137465,1765398632161,-300.0,0.00011696,2]
[398137467,1765398632171,-300.0,0.00011696,2]
[398137469,1765398632181,-300.0,0.00011696,2]
[398137471,1765398632190,-300.0,0.00011696,2]
[398137473,1765398632199,-600.0,0.00011929,2]
[398137475,1765398632209,-1026.70091459,0.00012,2]
[398137515,1765398637977,-386.51,0.00012,2]
[398137517,1765398637988,-3586.78908541,0.00012,2]
[398137519,1765398637997,-218.17196703,0.00012522,2]
[398137521,1765398638007,-700.0,0.00012731,2]
[398137523,1765398638016,-500.0,0.00012792,2]
[398137525,1765398638025,-340.12334633,0.00012792,2]
[398137570,1765398640099,-159.87665367,0.00012792,2]
[398137572,1765398640108,-500.0,0.00012792,2]
[398137573,1765398640118,-1000.0,0.00012792,2]
[398137574,1765398640129,-500.0,0.00012792,2]
[398137575,1765398640141,-500.0,0.00012792,2]
[398137576,1765398640150,-500.0,0.00012792,2]
[398137577,1765398640159,-500.0,0.00012792,2]
[398137578,1765398640168,-500.0,0.00012792,2]
[398137579,1765398640178,-500.0,0.00012792,2]
[398137580,1765398640187,-500.0,0.00012792,2]
[398137581,1765398640197,-500.00000003,0.00012792,2]
[398137582,1765398640206,-533.88981491,0.00012792,2]
[398137583,1765398640217,-500.0,0.00012792,2]
[398137584,1765398640226,-500.0,0.00012792,2]
[398137585,1765398640235,-500.0,0.00012792,2]
[398137586,1765398640244,-500.0,0.00012792,2]
[398137587,1765398640254,-500.0,0.00012792,2]
[398137588,1765398640263,-500.0,0.00012792,2]
[398137589,1765398640272,-500.0,0.00012792,2]
[398137590,1765398640281,-999.43535118,0.00012799,2]
[398137591,1765398640291,-288.2854704,0.00012799,2]
[398137592,1765398640301,-500.0,0.00012799,2]
[398137593,1765398640311,-188.6547369,0.00012799,2]
[398137594,1765398640320,-500.0,0.00012799,2]
[398137595,1765398640330,-500.0,0.00012799,2]
[398137596,1765398640339,-497.86419373,0.00012799,2]
[398137597,1765398640348,-500.0,0.00012799,2]
[398137598,1765398640358,-500.0,0.00012799,2]
[398137599,1765398640367,-266.32265158,0.00012799,2]
[398137600,1765398640376,-500.0,0.00012799,2]
[398137601,1765398640385,-500.0,0.00012799,2]
[398137602,1765398640394,-500.0,0.00012799,2]
[398137603,1765398640403,-500.0,0.00012799,2]
[398137604,1765398640412,-500.0,0.00012799,2]
[398137605,1765398640422,-500.0,0.00012799,2]
[398137606,1765398640431,-500.0,0.00012799,2]
[398137607,1765398640440,-500.0,0.00012799,2]
[398137608,1765398640449,-500.0,0.00012799,2]
[398137609,1765398640458,-500.0,0.00012799,2]
[398137610,1765398640467,-500.0,0.00012799,2]
[398137611,1765398640476,-8336.61282101,0.000128,2]
[398137681,1765398643590,-8944.8,0.000128,2]
[398137683,1765398643603,-811.35292641,0.000128,2]
[398137917,1765398645923,-46805.16738639,0.000128,2]
[398139214,1765398662215,174.41,6.5e-05,2]
[398139241,1765398662502,174.41,6.7e-05,2]
[398139414,1765398737544,157.07,6.5e-05,2]
[398139418,1765398754438,150.0,6.749e-05,2]
[398139420,1765398787198,164.29,6.5e-05,2]
[398139421,1765398787510,164.29,6.7e-05,2]
[398139422,1765398831858,150.0,6.732e-05,2]
[398139423,1765398857117,157.33,6.5e-05,2]
[398139424,1765398909295,154.57,6.5e-05,2]
[398139425,1765398909643,154.57,6.7e-05,2]
[398139426,1765398914473,150.0,6.744e-05,2]
[398139431,1765398977765,156.57,6.5e-05,2]
[398139432,1765398993251,150.0,6.742e-05,2]
[398139438,1765399030050,151.31,6.5e-05,2]
[398139439,1765399030322,151.31,6.7e-05,2]
[398139440,1765399071819,150.0,6.732e-05,2]
[398139442,1765399098076,155.97,6.5e-05,2]
[398139444,1765399150944,151.2,6.5e-05,2]
[398139445,1765399151217,151.2,6.7e-05,2]
[398139446,1765399151500,150.0,6.741e-05,2]
[398139454,1765399217537,155.78,6.5e-05,2]
[398139455,1765399228828,150.0,6.742e-05,2]
[398139457,1765399272072,151.1,6.5e-05,2]
[398139458,1765399272412,151.1,6.7e-05,2]
[398139470,1765399306087,150.0,6.73e-05,2]
[398139473,1765399336007,150.11,6.5e-05,2]
[398139475,1765399393190,151.12,6.5e-05,2]
[398139476,1765399393549,151.12,6.7e-05,2]
[398139480,1765399456298,150.15,6.5e-05,2]
[398139481,1765399465778,150.0,6.746e-05,2]
[398139485,1765399513533,151.15,6.5e-05,2]
[398139486,1765399513997,151.15,6.7e-05,2]
[398139487,1765399545608,150.0,6.737e-05,2]
[398139489,1765399574772,151.15,6.5e-05,2]
[398139494,1765399629006,150.0,6.749e-05,2]
[398139495,1765399633723,151.15,6.5e-05,2]
[398139497,1765399693351,151.15,6.5e-05,2]
[398139498,1765399705742,150.0,6.746e-05,2]
[398139502,1765399753641,151.15,6.5e-05,2]
[398139503,1765399782962,150.0,6.735e-05,2]
[398139505,1765399811564,151.15,6.5e-05,2]
[398139535,1765399832044,-151.15,6.8e-05,2]
[398139537,1765399832054,-519.0,6.965e-05,2]
[398139538,1765399832063,-150.0,6.966e-05,2]
[398139540,1765399832072,-151.15,7e-05,2]
[398139542,1765399832082,-150.0,7.067e-05,2]
[398139544,1765399832091,-151.15,7.3e-05,2]
[398139546,1765399832100,-204.96,7.376e-05,2]
[398139548,1765399832111,-151.15,7.6e-05,2]
[398139550,1765399832121,-273.28,7.697e-05,2]
[398139552,1765399832130,-151.15,7.8e-05,2]
[398139554,1765399832139,-341.6,8.017e-05,2]
[398139555,1765399832149,-151.15,8.1e-05,2]
[398139557,1765399832159,-151.15,8.3e-05,2]
[398139559,1765399832168,-409.91,8.338e-05,2]
[398139561,1765399832179,-151.15,8.6e-05,2]
[398139563,1765399832188,-478.23,8.659e-05,2]
[398139565,1765399832197,-151.15,8.8e-05,2]
[398139567,1765399832207,-177.0,8.966e-05,2]
[398139569,1765399832217,-546.55,8.98e-05,2]
[398139571,1765399832226,-151.15,9.1e-05,2]
[398139573,1765399832235,-614.87,9.3e-05,2]
[398139575,1765399832244,-151.15,9.4e-05,2]
[398139577,1765399832253,-300.0,9.495e-05,2]
[398139579,1765399832263,-1200.0,9.495e-05,2]
[398139581,1765399832272,-932.0,9.496e-05,2]
[398139583,1765399832281,-266.0,9.496e-05,2]
[398139585,1765399832291,-300.0,9.497e-05,2]
[398139587,1765399832301,-300.0,9.497e-05,2]
[398139589,1765399832310,-300.0,9.497e-05,2]
[398139591,1765399832320,-300.0,9.497e-05,2]
[398139593,1765399832329,-300.0,9.497e-05,2]
[398139595,1765399832340,-300.0,9.497e-05,2]
[398139597,1765399832350,-300.0,9.497e-05,2]
[398139599,1765399832361,-300.0,9.497e-05,2]
[398139601,1765399832370,-300.0,9.497e-05,2]
[398139602,1765399832379,-300.0,9.497e-05,2]
[398139604,1765399832389,-300.0,9.497e-05,2]
[398139606,1765399832398,-300.0,9.497e-05,2]
[398139608,1765399832407,-300.0,9.497e-05,2]
[398139610,1765399832417,-300.0,9.497e-05,2]
[398139612,1765399832426,-300.0,9.497e-05,2]
[398139613,1765399832436,-600.0,9.497e-05,2]
[398139615,1765399832445,-151.15,9.6e-05,2]
[398139617,1765399832454,-683.19,9.621e-05,2]
[398139619,1765399832463,-151.15,9.9e-05,2]
[398139621,1765399832472,-151.15,0.000101,2]
[398139623,1765399832481,-151.15,0.000104,2]
[398139625,1765399832490,-420.0,0.00010445,2]
[398139626,1765399832499,-436.0,0.00010445,2]
[398139628,1765399832508,-720.0,0.00010447,2]
[398139630,1765399832517,-389.8499835,0.00010599,2]
[398139631,1765399832526,-151.15,0.000106,2]
[398139633,1765399832540,-151.15,0.000109,2]
[398139635,1765399832549,-204.0,0.00010966,2]
[398139637,1765399832558,-177.2640849,0.00010977,2]
[398139647,1765399832642,-151.15,0.000112,2]
[398139649,1765399832651,-151.15,0.000114,2]
[398139651,1765399832660,-271.0,0.00011489,2]
[398139652,1765399832669,-864.0,0.00011492,2]
[398139654,1765399832679,-151.15,0.000117,2]
[398139656,1765399832689,-151.15,0.000119,2]
[398139658,1765399832699,-151.15,0.000122,2]
[398139660,1765399832709,-151.15,0.000125,2]
[398139662,1765399832719,-533.88981491,0.00012573,2]
[398139664,1765399832729,-1000.0,0.00012573,2]
[398139666,1765399832740,-5000.0,0.000126,2]
[398139668,1765399832750,-1000.0,0.00012641,2]
[398139670,1765399832760,-500.0,0.0001269,2]
[398139672,1765399832772,-500.0,0.0001269,2]
[398139673,1765399832782,-500.0,0.0001269,2]
[398139675,1765399832794,-201.79982928,0.00012699,2]
[398139677,1765399832805,-500.0,0.00012699,2]
[398139679,1765399832816,-500.0,0.00012699,2]
[398139680,1765399832827,-500.0,0.00012699,2]
[398139681,1765399832837,-500.0,0.00012699,2]
[398139682,1765399832847,-610.8737993,0.00012699,2]
[398139683,1765399832862,-500.0,0.00012699,2]
[398139684,1765399832871,-370.40381239,0.00012699,2]
[398139685,1765399832882,-500.0,0.00012699,2]
[398139686,1765399832893,-500.0,0.00012699,2]
[398139687,1765399832902,-409.25365165,0.00012699,2]
[398139688,1765399832912,-500.0,0.00012699,2]
[398139689,1765399832921,-500.0,0.00012699,2]
[398139690,1765399832931,-500.0,0.00012699,2]
[398139691,1765399832940,-500.0,0.00012699,2]
[398139692,1765399832949,-42984.14548969,0.000127,2]
[398139706,1765399838054,-600.0,0.00012433,2]
[398139708,1765399838064,-6.04880196,0.000127,2]
[398139709,1765399838075,-2694.248208,0.000127,2]
[398139711,1765399838086,-418.70525394,0.000127,2]
[398139713,1765399838098,-356.87099803,0.000127,2]
[398139716,1765399838118,-706.72910092,0.000127,2]
[398139718,1765399838130,-955.22253843,0.000127,2]
[398139721,1765399838142,-1020.48504317,0.000127,2]
[398139723,1765399838158,-2329.95344942,0.000127,2]
[398139725,1765399838170,-557.69832396,0.000127,2]
[398139741,1765399838326,-1920.14731643,0.000127,2]
[398139743,1765399838339,-1517.68091614,0.000127,2]
[398139745,1765399838351,-3632.46893236,0.000127,2]
[398139754,1765399838435,-4717.75764161,0.000127,2]
[398139928,1765399840269,-2109.60784002,0.000127,2]
[398139930,1765399840280,-11291.44,0.000127,2]
[398139932,1765399840292,-1757.62581845,0.000127,2]
[398139935,1765399840308,-29068.36065008,0.000127,2]
[398139937,1765399840319,-3670.39365239,0.000127,2]
[398139939,1765399840330,-18376.8,0.000127,2]
[398140227,1765399843218,-631.8891262,0.000127,2]
[398140229,1765399843230,-3042.04970034,0.000127,2]
[398140231,1765399843242,-1147.5,0.000127,2]
[398140520,1765399846011,-1632.41982005,0.000127,2]
[398140527,1765399846067,-677.29003737,0.000127,2]
[398140532,1765399846123,-19987.08431802,0.000127,2]
[398140540,1765399846188,-306.72417695,0.000127,2]